Workbook

Sheet Cover
B2: Excel Basics 16: Mixed Cell References in Formulas & Functions to Save Time
O4: Office 2016 Video #28
C7: Examples:
B8: 1 | C8: =Multiplication!A1 -> Example 1: Mixed Cell References in Multiplication Table
B9: 2 | C9: ='Budget & Assumption T.'!A1 -> Example 2: Mixed Cell References & Assumption Tables.
B10: 3 | C10: =Budget!A1 -> Example 3: Mixed Cell References for Budget with Income Statement Accounts
B11: 4 | C11: =Pension!A1 -> Example 4: Mixed Cell References for Retirement Savings Table
B12: 5 | C12: ='Payroll (an)'!A1 -> Example 5: Mixed Cell References & Correct Assumption Table for Dynamic Payroll Table

Sheet Multiplication
A1: Example 1: Mixed Cell References in Multiplication Table
A3: ="Mutiplication Table for my Little "&S31 -> Mutiplication Table for my Little Sister
B4: =S29 -> 1 | C4: =B4+$S30 -> 2 | D4: =C4+$S30 -> 3 | E4: =D4+$S30 -> 4 | F4: =E4+$S30 -> 5 | G4: =F4+$S30 -> 6 | H4: =G4+$S30 -> 7 | I4: =H4+$S30 -> 8 | J4: =I4+$S30 -> 9 | K4: =J4+$S30 -> 10 | L4: =K4+$S30 -> 11 | M4: =L4+$S30 -> 12
A5: =B4 -> 1
A6: =A5+S$30 -> 2
A7: =A6+S$30 -> 3
A8: =A7+S$30 -> 4
A9: =A8+S$30 -> 5
A10: =A9+S$30 -> 6
A11: =A10+S$30 -> 7
A12: =A11+S$30 -> 8
A13: =A12+S$30 -> 9
A14: =A13+S$30 -> 10
A15: =A14+S$30 -> 11
A16: =A15+S$30 -> 12
R28: Assumptions
R29: Start Number | S29: 1
R30: Increment | S30: 1
R31: Family Member | S31: Sister

Sheet Multiplication (an)
A1: Example 1: Mixed Cell References in Multiplication Table
A3: ="Mutiplication Table for my Little "&S31 -> Mutiplication Table for my Little Sister
B4: =S29 -> 1 | C4: =B4+$S30 -> 2 | D4: =C4+$S30 -> 3 | E4: =D4+$S30 -> 4 | F4: =E4+$S30 -> 5 | G4: =F4+$S30 -> 6 | H4: =G4+$S30 -> 7 | I4: =H4+$S30 -> 8 | J4: =I4+$S30 -> 9 | K4: =J4+$S30 -> 10 | L4: =K4+$S30 -> 11 | M4: =L4+$S30 -> 12
A5: =B4 -> 1 | B5: =B$4*$A5 -> 1 | C5: 2 | D5: 3 | E5: 4 | F5: 5 | G5: 6 | H5: 7 | I5: 8 | J5: 9 | K5: 10 | L5: 11 | M5: 12
A6: =A5+S$30 -> 2 | B6: 2 | C6: 4 | D6: 6 | E6: 8 | F6: 10 | G6: 12 | H6: 14 | I6: 16 | J6: 18 | K6: 20 | L6: 22 | M6: 24
A7: =A6+S$30 -> 3 | B7: 3 | C7: 6 | D7: 9 | E7: 12 | F7: 15 | G7: 18 | H7: 21 | I7: 24 | J7: 27 | K7: 30 | L7: 33 | M7: 36
A8: =A7+S$30 -> 4 | B8: 4 | C8: 8 | D8: 12 | E8: 16 | F8: 20 | G8: 24 | H8: 28 | I8: 32 | J8: 36 | K8: 40 | L8: 44 | M8: 48
A9: =A8+S$30 -> 5 | B9: 5 | C9: 10 | D9: 15 | E9: 20 | F9: 25 | G9: 30 | H9: 35 | I9: 40 | J9: 45 | K9: 50 | L9: 55 | M9: 60
A10: =A9+S$30 -> 6 | B10: 6 | C10: 12 | D10: 18 | E10: 24 | F10: 30 | G10: 36 | H10: 42 | I10: 48 | J10: 54 | K10: 60 | L10: 66 | M10: 72
A11: =A10+S$30 -> 7 | B11: 7 | C11: 14 | D11: 21 | E11: 28 | F11: 35 | G11: 42 | H11: 49 | I11: 56 | J11: 63 | K11: 70 | L11: 77 | M11: 84
A12: =A11+S$30 -> 8 | B12: 8 | C12: 16 | D12: 24 | E12: 32 | F12: 40 | G12: 48 | H12: 56 | I12: 64 | J12: 72 | K12: 80 | L12: 88 | M12: 96
A13: =A12+S$30 -> 9 | B13: 9 | C13: 18 | D13: 27 | E13: 36 | F13: 45 | G13: 54 | H13: 63 | I13: 72 | J13: 81 | K13: 90 | L13: 99 | M13: 108
A14: =A13+S$30 -> 10 | B14: 10 | C14: 20 | D14: 30 | E14: 40 | F14: 50 | G14: 60 | H14: 70 | I14: 80 | J14: 90 | K14: 100 | L14: 110 | M14: 120
A15: =A14+S$30 -> 11 | B15: 11 | C15: 22 | D15: 33 | E15: 44 | F15: 55 | G15: 66 | H15: 77 | I15: 88 | J15: 99 | K15: 110 | L15: 121 | M15: 132
A16: =A15+S$30 -> 12 | B16: 12 | C16: 24 | D16: 36 | E16: 48 | F16: 60 | G16: 72 | H16: 84 | I16: 96 | J16: 108 | K16: 120 | L16: 132 | M16: 144
R28: Assumptions
R29: Start Number | S29: 1
R30: Increment | S30: 1
R31: Family Member | S31: Sister

Sheet Video 02
A1: 2018 NI Projections | B1: Jan | C1: Feb | D1: Mar | E1: Apr | F1: May | G1: Total
A2: Revenue | B2: =B7 -> 6500 | C2: =B2*$B$8 -> 6890 | D2: =C2*$B$8 -> 7303.4 | E2: 7741.604 | F2: 8206.10024 | G2: =SUM(B2:F2) -> 36641.10424
A3: Expenses | B3: =B2*$B$9 -> 5525 | C3: =C2*$B$9 -> 5856.5 | D3: 6207.89 | E3: 6580.3634 | F3: 6975.185204 | G3: =SUM(B3:F3) -> 31144.9386
A4: Net Income | B4: =B2-B3 -> 975 | C4: =C2-C3 -> 1033.5 | D4: 1095.51 | E4: 1161.2406 | F4: 1230.915036 | G4: 5496.165636
A6: Assumptions (Formula Inputs)
A7: Start Revenue for Jan | B7: 6500
A8: Revenue % Increase | B8: 1.06
A9: Expense as % of Revenue | B9: 0.85

Sheet Budget
A1: Example 3: Mixed Cell References for Budget with Income Statement Accounts
A3: Assumptions (Formula Inputs)
A4: Start Revenue for Jan | B4: 5000 | D4: 2018 NI Projections | E4: Jan | F4: Feb | G4: Mar | H4: Apr | I4: May | J4: Jun | K4: Jul | L4: Aug | M4: Sep | N4: Oct | O4: Nov | P4: Dec | Q4: Total
A5: Revenue % Increase | B5: 0.015 | D5: Revenue
A6: Expense as % of Revenue: | D6: Expenses
A7: COGS | B7: 0.375 | D7: COGS
A8: Salaries and Wages | B8: 0.135 | D8: Salaries and Wages
A9: Rent | B9: 0.075 | D9: Rent
A10: Supplies | B10: 0.015 | D10: Supplies
A11: Depreciation | B11: 0.0475 | D11: Depreciation
A12: Utilities | B12: 0.035 | D12: Utilities
A13: Advertising | B13: 0.0375 | D13: Advertising
A14: Administration | B14: 0.025 | D14: Administration
A15: Phone and Internet | B15: 0.015 | D15: Phone and Internet
A16: Repairs & Maintenance | B16: 0.01 | D16: Repairs & Maintenance
A17: Travel | B17: 0.01 | D17: Travel
A18: Interest | B18: 0.025 | D18: Interest
A19: Tax | B19: 0.0875 | D19: Tax
D20: Total Expenses
A21: Total of Expenses % | B21: =SUM(B7:B19) -> 0.8925 | D21: Net Income
E34: 4462.5 | F34: 4529.4375 | G34: 4597.379062 | H34: 4666.339748 | I34: 4736.334845 | J34: 4807.379867 | K34: 4879.490565 | L34: 4952.682924 | M34: 5026.973168 | N34: 5102.377765 | O34: 5178.913432 | P34: 5256.597133
E35: 537.5 | F35: 545.5625 | G35: 553.7459375 | H35: 562.0521266 | I35: 570.4829085 | J35: 579.0401521 | K35: 587.7257544 | L35: 596.5416407 | M35: 605.4897653 | N35: 614.5721118 | O35: 623.7906935 | P35: 633.1475539

Sheet Budget (an)
A1: Example 3: Mixed Cell References for Budget with Income Statement Accounts
A3: Assumptions (Formula Inputs)
A4: Start Revenue for Jan | B4: 5000 | D4: 2018 NI Projections | E4: Jan | F4: Feb | G4: Mar | H4: Apr | I4: May | J4: Jun | K4: Jul | L4: Aug | M4: Sep | N4: Oct | O4: Nov | P4: Dec | Q4: Total
A5: Revenue % Increase | B5: 0.015 | D5: Revenue | E5: =B4 -> 5000 | F5: =ROUND(E5*(1+$B5),2) -> 5075 | G5: =ROUND(F5*(1+$B5),2) -> 5151.13 | H5: 5228.4 | I5: 5306.83 | J5: 5386.43 | K5: 5467.23 | L5: 5549.24 | M5: 5632.48 | N5: 5716.97 | O5: 5802.72 | P5: 5889.76 | Q5: =SUM(E5:P5) -> 65206.19
A6: Expense as % of Revenue: | D6: Expenses
A7: COGS | B7: 0.375 | D7: COGS | E7: =ROUND(E$5*$B7,2) -> 1875 | F7: 1903.13 | G7: 1931.67 | H7: 1960.65 | I7: 1990.06 | J7: 2019.91 | K7: 2050.21 | L7: 2080.97 | M7: 2112.18 | N7: 2143.86 | O7: 2176.02 | P7: 2208.66 | Q7: =SUM(E7:P7) -> 24452.32
A8: Salaries and Wages | B8: 0.135 | D8: Salaries and Wages | E8: 675 | F8: 685.13 | G8: 695.4 | H8: 705.83 | I8: 716.42 | J8: 727.17 | K8: 738.08 | L8: 749.15 | M8: 760.38 | N8: 771.79 | O8: 783.37 | P8: 795.12 | Q8: =SUM(E8:P8) -> 8802.84
A9: Rent | B9: 0.075 | D9: Rent | E9: 375 | F9: 380.63 | G9: 386.33 | H9: 392.13 | I9: 398.01 | J9: 403.98 | K9: 410.04 | L9: 416.19 | M9: 422.44 | N9: 428.77 | O9: 435.2 | P9: 441.73 | Q9: 4890.45
A10: Supplies | B10: 0.015 | D10: Supplies | E10: 75 | F10: 76.13 | G10: 77.27 | H10: 78.43 | I10: 79.6 | J10: 80.8 | K10: 82.01 | L10: 83.24 | M10: 84.49 | N10: 85.75 | O10: 87.04 | P10: 88.35 | Q10: 978.11
A11: Depreciation | B11: 0.0475 | D11: Depreciation | E11: 237.5 | F11: 241.06 | G11: 244.68 | H11: 248.35 | I11: 252.07 | J11: 255.86 | K11: 259.69 | L11: 263.59 | M11: 267.54 | N11: 271.56 | O11: 275.63 | P11: 279.76 | Q11: 3097.29
A12: Utilities | B12: 0.035 | D12: Utilities | E12: 175 | F12: 177.63 | G12: 180.29 | H12: 182.99 | I12: 185.74 | J12: 188.53 | K12: 191.35 | L12: 194.22 | M12: 197.14 | N12: 200.09 | O12: 203.1 | P12: 206.14 | Q12: 2282.22
A13: Advertising | B13: 0.0375 | D13: Advertising | E13: 187.5 | F13: 190.31 | G13: 193.17 | H13: 196.07 | I13: 199.01 | J13: 201.99 | K13: 205.02 | L13: 208.1 | M13: 211.22 | N13: 214.39 | O13: 217.6 | P13: 220.87 | Q13: 2445.25
A14: Administration | B14: 0.025 | D14: Administration | E14: 125 | F14: 126.88 | G14: 128.78 | H14: 130.71 | I14: 132.67 | J14: 134.66 | K14: 136.68 | L14: 138.73 | M14: 140.81 | N14: 142.92 | O14: 145.07 | P14: 147.24 | Q14: 1630.15
A15: Phone and Internet | B15: 0.015 | D15: Phone and Internet | E15: 75 | F15: 76.13 | G15: 77.27 | H15: 78.43 | I15: 79.6 | J15: 80.8 | K15: 82.01 | L15: 83.24 | M15: 84.49 | N15: 85.75 | O15: 87.04 | P15: 88.35 | Q15: 978.11
A16: Repairs & Maintenance | B16: 0.01 | D16: Repairs & Maintenance | E16: 50 | F16: 50.75 | G16: 51.51 | H16: 52.28 | I16: 53.07 | J16: 53.86 | K16: 54.67 | L16: 55.49 | M16: 56.32 | N16: 57.17 | O16: 58.03 | P16: 58.9 | Q16: 652.05
A17: Travel | B17: 0.01 | D17: Travel | E17: 50 | F17: 50.75 | G17: 51.51 | H17: 52.28 | I17: 53.07 | J17: 53.86 | K17: 54.67 | L17: 55.49 | M17: 56.32 | N17: 57.17 | O17: 58.03 | P17: 58.9 | Q17: 652.05
A18: Interest | B18: 0.025 | D18: Interest | E18: 125 | F18: 126.88 | G18: 128.78 | H18: 130.71 | I18: 132.67 | J18: 134.66 | K18: 136.68 | L18: 138.73 | M18: 140.81 | N18: 142.92 | O18: 145.07 | P18: 147.24 | Q18: 1630.15
A19: Tax | B19: 0.0875 | D19: Tax | E19: 437.5 | F19: 444.06 | G19: 450.72 | H19: 457.49 | I19: 464.35 | J19: 471.31 | K19: 478.38 | L19: 485.56 | M19: 492.84 | N19: 500.23 | O19: 507.74 | P19: 515.35 | Q19: 5705.53
D20: Total Expenses | E20: =SUM(E7:E19) -> 4462.5 | F20: =SUM(F7:F19) -> 4529.47 | G20: 4597.38 | H20: 4666.35 | I20: 4736.34 | J20: 4807.39 | K20: 4879.49 | L20: 4952.7 | M20: 5026.98 | N20: 5102.37 | O20: 5178.94 | P20: =SUM(P7:P19) -> 5256.61 | Q20: 58196.52
A21: Total of Expenses % | B21: =SUM(B7:B19) -> 0.8925 | D21: Net Income | E21: =E5-E20 -> 537.5 | F21: =F5-F20 -> 545.53 | G21: 553.75 | H21: 562.05 | I21: 570.49 | J21: 579.04 | K21: 587.74 | L21: 596.54 | M21: 605.5 | N21: 614.6 | O21: 623.78 | P21: 633.15 | Q21: 7009.67
E34: 4462.5 | F34: 4529.4375 | G34: 4597.379062 | H34: 4666.339748 | I34: 4736.334845 | J34: 4807.379867 | K34: 4879.490565 | L34: 4952.682924 | M34: 5026.973168 | N34: 5102.377765 | O34: 5178.913432 | P34: 5256.597133
E35: 537.5 | F35: 545.5625 | G35: 553.7459375 | H35: 562.0521266 | I35: 570.4829085 | J35: 579.0401521 | K35: 587.7257544 | L35: 596.5416407 | M35: 605.4897653 | N35: 614.5721118 | O35: 623.7906935 | P35: 633.1475539

Sheet Budget & Assumption T.
A1: Example 2: Mixed Cell References & Assumption Tables.
A2: Goal: Calculate Expenses for Budgeting Process.
A4: Month | B4: Jan | C4: Feb | D4: Mar | E4: Apr | F4: May
A5: Revenue | B5: 65487 | C5: 75894 | D5: 65007 | E5: 95449 | F5: 99220 | J5: COGS | K5: 0.4645598331
A6: COGS | J6: Operating | K6: 0.1947892829
A7: Operating | J7: Administrative | K7: 0.1543874927
A8: Administrative | J8: Other | K8: 0.04037141295
A9: Other
A10: Total Expenses | B10: =SUM(B6:B9) -> 0 | C10: =SUM(C6:C9) -> 0 | D10: =SUM(D6:D9) -> 0 | E10: =SUM(E6:E9) -> 0 | F10: =SUM(F6:F9) -> 0
A11: Net Income | B11: =B5-B10 -> 65487 | C11: =C5-C10 -> 75894 | D11: =D5-D10 -> 65007 | E11: =E5-E10 -> 95449 | F11: =F5-F10 -> 99220
A13: This Assumption Table can be used with Mixed Cell References because
A14: expenses in Assumption Table are oriented in the same direction as the formula table.
A15: Assumption Table (Formula Inputs):
A16: COGS | B16: 0.4645598331 | D16: <<= Expenses are Vertical in Assumption Table & Vertical in Formula Table
A17: Operating | B17: 0.1947892829 | D17: Horizontal / Horizontal works.
A18: Administrative | B18: 0.1543874927 | D18: Vertical / Vertical works.
A19: Other | B19: 0.04037141295 | D19: Horizontal / Vertical will NOT work.
A21: This Assumption Table can NOT be used with Mixed Cell References
A22: because expenses in Assumption Table are NOT oriented in the same direction as the formula table.
A23: Assumption Table (Formula Inputs):
A24: COGS | B24: Operating | C24: Administrative | D24: Other
A25: 0.4645598331 | B25: 0.1947892829 | C25: 0.1543874927 | D25: 0.04037141295

Sheet Budget & Assumption T. (an)
A1: Example 2: Mixed Cell References & Assumption Tables.
A2: Goal: Calculate Expenses for Budgeting Process.
A4: Month | B4: Jan | C4: Feb | D4: Mar | E4: Apr | F4: May
A5: Revenue | B5: 65487 | C5: 75894 | D5: 65007 | E5: 95449 | F5: 99220
A6: COGS | B6: =ROUND(B$5*$B16,2) -> 30422.63 | C6: =ROUND(C$5*$B16,2) -> 35257.3 | D6: 30199.64 | E6: 44341.77 | F6: 46093.63
A7: Operating | B7: 12756.17 | C7: 14783.34 | D7: 12662.67 | E7: 18592.44 | F7: 19326.99
A8: Administrative | B8: 10110.37 | C8: 11717.08 | D8: 10036.27 | E8: 14736.13 | F8: 15318.33
A9: Other | B9: 2643.8 | C9: 3063.95 | D9: 2624.42 | E9: 3853.41 | F9: 4005.65
A10: Total Expenses | B10: =SUM(B6:B9) -> 55932.97 | C10: =SUM(C6:C9) -> 64821.67 | D10: =SUM(D6:D9) -> 55523 | E10: =SUM(E6:E9) -> 81523.75 | F10: =SUM(F6:F9) -> 84744.6
A11: Net Income | B11: =B5-B10 -> 9554.03 | C11: =C5-C10 -> 11072.33 | D11: =D5-D10 -> 9484 | E11: =E5-E10 -> 13925.25 | F11: =F5-F10 -> 14475.4
A13: This Assumption Table can be used with Mixed Cell References because
A14: expenses in Assumption Table are oriented in the same direction as the formula table.
A15: Assumption Table (Formula Inputs):
A16: COGS | B16: 0.4645598331 | D16: <<= Expenses are Vertical in Assumption Table & Vertical in Formula Table
A17: Operating | B17: 0.1947892829 | D17: Horizontal / Horizontal works.
A18: Administrative | B18: 0.1543874927 | D18: Vertical / Vertical works.
A19: Other | B19: 0.04037141295 | D19: Horizontal / Vertical will NOT work.
A21: This Assumption Table can NOT be used with Mixed Cell References
A22: because expenses in Assumption Table are NOT oriented in the same direction as the formula table.
A23: Assumption Table (Formula Inputs):
A24: =TRANSPOSE(A16:B19) -> COGS | B24: Operating | C24: Administrative | D24: Other
A25: 0.4645598331 | B25: 0.1947892829 | C25: 0.1543874927 | D25: 0.04037141295

Sheet Pension
A1: Example 4: Mixed Cell References for Retirement Savings Table
A3: Yearly PMT | B3: -3000
A5: What will your Pension be worth when you retire?
A6: Years/Rate | B6: =B34 -> 0.03 | C6: =B6+$B35 -> 0.04 | D6: =C6+$B35 -> 0.05 | E6: =D6+$B35 -> 0.06 | F6: =E6+$B35 -> 0.07 | G6: =F6+$B35 -> 0.08
A7: =B36 -> 10
A8: =A7+B$37 -> 15
A9: 20
A10: 25
A11: 30
A12: 35
A13: 40
A14: 45
A15: 50
A34: Start rate | B34: 0.03
A35: increment | B35: 0.01
A36: Start years | B36: 10
A37: Increment | B37: 5

Sheet Pension (an)
A1: Example 4: Mixed Cell References for Retirement Savings Table
A3: Yearly PMT | B3: -3000
A5: What will your Pension be worth when you retire?
A6: Years/Rate | B6: =B34 -> 0.03 | C6: =B6+$B35 -> 0.04 | D6: =C6+$B35 -> 0.05 | E6: =D6+$B35 -> 0.06 | F6: =E6+$B35 -> 0.07 | G6: =F6+$B35 -> 0.08
A7: =B36 -> 10 | B7: =FV(B$6,$A7,$B$3) -> 34391.63793 | C7: =FV(C$6,$A7,$B$3) -> 36018.32137 | D7: 37733.67761 | E7: 39542.38483 | F7: 41449.34388 | G7: 43459.6874
A8: =A7+B$37 -> 15 | B8: =FV(B$6,$A8,$B$3) -> 55796.74166 | C8: 60070.76291 | D8: 64735.69076 | E8: 69827.90965 | F8: 75387.06603 | G8: 81456.34178
A9: 20 | B9: 80611.12347 | C9: 89334.23573 | D9: 99197.86231 | E9: 110356.7736 | F9: 122986.477 | G9: 137285.8929
A10: 25 | B10: 109377.793 | C10: 124937.7249 | D10: 143181.2965 | E10: 164593.536 | F10: 189747.1131 | G10: 219317.8199
A11: 30 | B11: 142726.2471 | C11: 168254.8133 | D11: 199316.5425 | E11: 237174.5586 | F11: 283382.359 | G11: 339849.6333
A12: 35 | B12: 181386.2454 | C12: 220956.6746 | D12: 270960.9221 | E12: 334304.3396 | F12: 414710.6351 | G12: 516950.411
A13: 40 | B13: 226203.7792 | C13: 285076.5471 | D13: 362399.3227 | E13: 464285.8969 | F13: 598905.336 | G13: 777169.5561
A14: 45 | B14: 278159.5842 | C14: 363088.1761 | D14: 479100.4676 | E14: 638230.5414 | F14: 857247.9325 | G14: 1159516.852
A15: 50 | B15: 338390.6019 | C15: 458001.251 | D15: 628043.9871 | E15: 871007.7137 | F15: 1219586.788 | G15: 1721310.469
A34: Start rate | B34: 0.03
A35: increment | B35: 0.01
A36: Start years | B36: 10
A37: Increment | B37: 5

Sheet Payroll
A1: Example 5: Mixed Cell References & Correct Assumption Table for Dynamic Payroll Table
A3: Employee Take Home Pay Table
A4: Names | B4: January Sales | C4: Commission on Sales | D4: Base Salary | E4: Gross Pay | F4: =F13 -> FICA Deduction | G4: =G13 -> Medicare Deduction | H4: =H13 -> Federal Withholdings | I4: Total Deductions | J4: Net Pay
A5: Steve | B5: 125000 | C5: =ROUND(B5*C$14,2) -> 2500 | D5: 2000 | E5: =SUM(C5:D5) -> 4500 | I5: =SUM(F5:H5) -> 0 | J5: =E5-I5 -> 4500
A6: Abdi | B6: 97855 | C6: =ROUND(B6*C$14,2) -> 1957.1 | D6: 2000 | E6: =SUM(C6:D6) -> 3957.1 | I6: =SUM(F6:H6) -> 0 | J6: =E6-I6 -> 3957.1
A7: Tyrone | B7: 181250 | C7: =ROUND(B7*C$14,2) -> 3625 | D7: 2000 | E7: =SUM(C7:D7) -> 5625 | I7: =SUM(F7:H7) -> 0 | J7: =E7-I7 -> 5625
A8: Aya | B8: 95500 | C8: =ROUND(B8*C$14,2) -> 1910 | D8: 2000 | E8: =SUM(C8:D8) -> 3910 | I8: =SUM(F8:H8) -> 0 | J8: =E8-I8 -> 3910
A9: Bobbi | B9: 78550 | C9: =ROUND(B9*C$14,2) -> 1571 | D9: 2000 | E9: =SUM(C9:D9) -> 3571 | I9: =SUM(F9:H9) -> 0 | J9: =E9-I9 -> 3571
A10: Totals | B10: =SUM(B5:B9) -> 578155 | C10: 11563.1 | D10: 10000 | E10: 21563.1 | F10: 0 | G10: 0 | H10: 0 | I10: 0 | J10: 21563.1
F12: Assumption Table
C13: Commission Rate | F13: FICA Deduction | G13: Medicare Deduction | H13: Federal Withholdings
C14: 0.02 | F14: 0.062 | G14: 0.0145 | H14: 0.2
F16: =F12 -> Assumption Table
F17: =F13 -> FICA Deduction | G17: =F14 -> 0.062
F18: =G13 -> Medicare Deduction | G18: =G14 -> 0.0145
F19: =H13 -> Federal Withholdings | G19: =H14 -> 0.2

Sheet Payroll (an)
A1: Example 5: Mixed Cell References & Correct Assumption Table for Dynamic Payroll Table
A3: Employee Take Home Pay Table
A4: Names | B4: January Sales | C4: Commission on Sales | D4: Base Salary | E4: Gross Pay | F4: =F13 -> FICA Deduction | G4: =G13 -> Medicare Deduction | H4: =H13 -> Pension | I4: =I13 -> Federal Withholdings | J4: Total Deductions | K4: Net Pay
A5: Steve | B5: 125000 | C5: =ROUND(B5*C$14,2) -> 2500 | D5: 2000 | E5: =SUM(C5:D5) -> 4500 | F5: =ROUND($E5*F$14,2) -> 279 | G5: =ROUND($E5*G$14,2) -> 65.25 | H5: 90 | I5: 900 | J5: =SUM(F5:I5) -> 1334.25 | K5: =E5-J5 -> 3165.75
A6: Abdi | B6: 97855 | C6: =ROUND(B6*C$14,2) -> 1957.1 | D6: 2000 | E6: =SUM(C6:D6) -> 3957.1 | F6: =ROUND($E6*F$14,2) -> 245.34 | G6: 57.38 | H6: 79.14 | I6: 791.42 | J6: =SUM(F6:I6) -> 1173.28 | K6: =E6-J6 -> 2783.82
A7: Tyrone | B7: 181250 | C7: =ROUND(B7*C$14,2) -> 3625 | D7: 2000 | E7: =SUM(C7:D7) -> 5625 | F7: 348.75 | G7: 81.56 | H7: 112.5 | I7: 1125 | J7: =SUM(F7:I7) -> 1667.81 | K7: =E7-J7 -> 3957.19
A8: Aya | B8: 95500 | C8: =ROUND(B8*C$14,2) -> 1910 | D8: 2000 | E8: =SUM(C8:D8) -> 3910 | F8: 242.42 | G8: 56.7 | H8: 78.2 | I8: 782 | J8: =SUM(F8:I8) -> 1159.32 | K8: =E8-J8 -> 2750.68
A9: Bobbi | B9: 78550 | C9: =ROUND(B9*C$14,2) -> 1571 | D9: 2000 | E9: =SUM(C9:D9) -> 3571 | F9: 221.4 | G9: 51.78 | H9: 71.42 | I9: =ROUND($E9*I$14,2) -> 714.2 | J9: =SUM(F9:I9) -> 1058.8 | K9: =E9-J9 -> 2512.2
A10: Totals | B10: =SUM(B5:B9) -> 578155 | C10: 11563.1 | D10: 10000 | E10: 21563.1 | F10: 1336.91 | G10: 312.67 | H10: =SUM(H5:H9) -> 431.26 | I10: 4312.62 | J10: 6393.46 | K10: 15169.64
F12: Assumption Table
C13: Commission Rate | F13: FICA Deduction | G13: Medicare Deduction | H13: Pension | I13: Federal Withholdings
C14: 0.02 | F14: 0.062 | G14: 0.0145 | H14: 0.02 | I14: 0.2
F16: =F12 -> Assumption Table
F17: =F13 -> FICA Deduction | G17: =F14 -> 0.062
F18: =G13 -> Medicare Deduction | G18: =G14 -> 0.0145
F19: =I13 -> Federal Withholdings | G19: =I14 -> 0.2

Sheet HW==>>

Sheet HW(1)
A1: Using Mixed Cell References, complete the multiplication table.
A3: Mutiplication Table for my Little Sister
B4: 1 | C4: 2 | D4: 3 | E4: 4 | F4: 5 | G4: 6 | H4: 7 | I4: 8 | J4: 9 | K4: 10 | L4: 11 | M4: 12
A5: 1
A6: 2
A7: 3
A8: 4
A9: 5
A10: 6
A11: 7
A12: 8
A13: 9
A14: 10
A15: 11
A16: 12

Sheet HW(1an)
A1: Using Mixed Cell References, complete the multiplication table.
A3: Mutiplication Table for my Little Sister
B4: 1 | C4: 2 | D4: 3 | E4: 4 | F4: 5 | G4: 6 | H4: 7 | I4: 8 | J4: 9 | K4: 10 | L4: 11 | M4: 12
A5: 1 | B5: =B$4*$A5 -> 1 | C5: 2 | D5: 3 | E5: 4 | F5: 5 | G5: 6 | H5: 7 | I5: 8 | J5: 9 | K5: 10 | L5: 11 | M5: 12
A6: 2 | B6: 2 | C6: 4 | D6: 6 | E6: 8 | F6: 10 | G6: 12 | H6: 14 | I6: 16 | J6: 18 | K6: 20 | L6: 22 | M6: 24
A7: 3 | B7: 3 | C7: 6 | D7: 9 | E7: 12 | F7: 15 | G7: 18 | H7: 21 | I7: 24 | J7: 27 | K7: 30 | L7: 33 | M7: 36
A8: 4 | B8: 4 | C8: 8 | D8: 12 | E8: 16 | F8: 20 | G8: 24 | H8: 28 | I8: 32 | J8: 36 | K8: 40 | L8: 44 | M8: 48
A9: 5 | B9: 5 | C9: 10 | D9: 15 | E9: 20 | F9: 25 | G9: 30 | H9: 35 | I9: 40 | J9: 45 | K9: 50 | L9: 55 | M9: 60
A10: 6 | B10: 6 | C10: 12 | D10: 18 | E10: 24 | F10: 30 | G10: 36 | H10: 42 | I10: 48 | J10: 54 | K10: 60 | L10: 66 | M10: 72
A11: 7 | B11: 7 | C11: 14 | D11: 21 | E11: 28 | F11: 35 | G11: 42 | H11: 49 | I11: 56 | J11: 63 | K11: 70 | L11: 77 | M11: 84
A12: 8 | B12: 8 | C12: 16 | D12: 24 | E12: 32 | F12: 40 | G12: 48 | H12: 56 | I12: 64 | J12: 72 | K12: 80 | L12: 88 | M12: 96
A13: 9 | B13: 9 | C13: 18 | D13: 27 | E13: 36 | F13: 45 | G13: 54 | H13: 63 | I13: 72 | J13: 81 | K13: 90 | L13: 99 | M13: 108
A14: 10 | B14: 10 | C14: 20 | D14: 30 | E14: 40 | F14: 50 | G14: 60 | H14: 70 | I14: 80 | J14: 90 | K14: 100 | L14: 110 | M14: 120
A15: 11 | B15: 11 | C15: 22 | D15: 33 | E15: 44 | F15: 55 | G15: 66 | H15: 77 | I15: 88 | J15: 99 | K15: 110 | L15: 121 | M15: 132
A16: 12 | B16: 12 | C16: 24 | D16: 36 | E16: 48 | F16: 60 | G16: 72 | H16: 84 | I16: 96 | J16: 108 | K16: 120 | L16: 132 | M16: 144

Sheet HW(2)
A1: Create the formulas to complete the Projected Net Income Statement.
B4: Jan | C4: Feb | D4: Mar | E4: Apr
A5: Revenue | B5: 5000 | C5: 6000 | D5: 7500 | E5: 6900
A6: =A15 -> Expense 1
A7: =A16 -> Expense 2
A8: =A17 -> Expense 3
A9: =A18 -> Expense 4
A10: =A19 -> Expense 5
A11: Total Expenses
A12: Net Income
A14: Assumption Table (Formula Inputs)
A15: Expense 1 | B15: 0.2
A16: Expense 2 | B16: 0.15
A17: Expense 3 | B17: 0.14
A18: Expense 4 | B18: 0.05
A19: Expense 5 | B19: 0.33

Sheet HW(2an)
A1: Create the formulas to complete the Projected Net Income Statement.
B4: Jan | C4: Feb | D4: Mar | E4: Apr
A5: Revenue | B5: 5000 | C5: 6000 | D5: 7500 | E5: 6900
A6: =A15 -> Expense 1 | B6: =ROUND(B$5*$B15,2) -> 1000 | C6: 1200 | D6: 1500 | E6: 1380
A7: =A16 -> Expense 2 | B7: 750 | C7: 900 | D7: 1125 | E7: 1035
A8: =A17 -> Expense 3 | B8: 700 | C8: 840 | D8: 1050 | E8: 966
A9: =A18 -> Expense 4 | B9: 250 | C9: 300 | D9: 375 | E9: 345
A10: =A19 -> Expense 5 | B10: 1650 | C10: 1980 | D10: 2475 | E10: 2277
A11: Total Expenses | B11: =SUM(B6:B10) -> 4350 | C11: 5220 | D11: 6525 | E11: 6003
A12: Net Income | B12: =B5-B11 -> 650 | C12: 780 | D12: 975 | E12: 897
A14: Assumption Table (Formula Inputs)
A15: Expense 1 | B15: 0.2
A16: Expense 2 | B16: 0.15
A17: Expense 3 | B17: 0.14
A18: Expense 4 | B18: 0.05
A19: Expense 5 | B19: 0.33

Sheet HW(3)
A1: In the green cells create a formula that calculates the expenses as a percent of Income.
B3: Month | C3: Income | D3: =D16 -> Expense 1 | E3: Expense 2 | F3: Expense 3 | G3: Expense 4 | H3: Expense 5 | I3: Expense 6 | J3: Expense 7
B4: Jan | C4: 5000
B5: Feb | C5: 6000
B6: Mar | C6: 7500
B7: Apr | C7: 8000
B8: May | C8: 8000
B9: Jun | C9: 8000
B10: Jul | C10: 10000
B11: Aug | C11: 11000
B12: Sep | C12: 15000
A15: Assumptions (Formula Inputs) | D15: Assumptions (Formula Inputs)
A16: Expense 1 | B16: 0.1 | D16: Expense 1 | E16: Expense 2 | F16: Expense 3 | G16: Expense 4 | H16: Expense 5 | I16: Expense 6 | J16: Expense 7
A17: Expense 2 | B17: 0.05 | D17: 0.1 | E17: 0.05 | F17: 0.12 | G17: 0.045 | H17: 0.21 | I17: 0.04 | J17: 0.03
A18: Expense 3 | B18: 0.12
A19: Expense 4 | B19: 0.045
A20: Expense 5 | B20: 0.21
A21: Expense 6 | B21: 0.04
A22: Expense 7 | B22: 0.03

Sheet HW(3an)
A1: In the green cells create a formula that calculates the expenses as a percent of Income.
B3: Month | C3: Income | D3: =D16 -> Expense 1 | E3: Expense 2 | F3: Expense 3 | G3: Expense 4 | H3: Expense 5 | I3: Expense 6 | J3: Expense 7
B4: Jan | C4: 5000 | D4: =ROUND($C4*D$17,2) -> 500 | E4: 250 | F4: 600 | G4: 225 | H4: 1050 | I4: 200 | J4: 150
B5: Feb | C5: 6000 | D5: 600 | E5: 300 | F5: 720 | G5: 270 | H5: 1260 | I5: 240 | J5: 180
B6: Mar | C6: 7500 | D6: 750 | E6: 375 | F6: 900 | G6: 337.5 | H6: 1575 | I6: 300 | J6: 225
B7: Apr | C7: 8000 | D7: 800 | E7: 400 | F7: 960 | G7: 360 | H7: 1680 | I7: 320 | J7: 240
B8: May | C8: 8000 | D8: 800 | E8: 400 | F8: 960 | G8: 360 | H8: 1680 | I8: 320 | J8: 240
B9: Jun | C9: 8000 | D9: 800 | E9: 400 | F9: 960 | G9: 360 | H9: 1680 | I9: 320 | J9: 240
B10: Jul | C10: 10000 | D10: 1000 | E10: 500 | F10: 1200 | G10: 450 | H10: 2100 | I10: 400 | J10: 300
B11: Aug | C11: 11000 | D11: 1100 | E11: 550 | F11: 1320 | G11: 495 | H11: 2310 | I11: 440 | J11: 330
B12: Sep | C12: 15000 | D12: 1500 | E12: 750 | F12: 1800 | G12: 675 | H12: 3150 | I12: 600 | J12: 450
A15: Assumptions (Formula Inputs) | D15: Assumptions (Formula Inputs)
A16: Expense 1 | B16: 0.1 | D16: Expense 1 | E16: Expense 2 | F16: Expense 3 | G16: Expense 4 | H16: Expense 5 | I16: Expense 6 | J16: Expense 7
A17: Expense 2 | B17: 0.05 | D17: 0.1 | E17: 0.05 | F17: 0.12 | G17: 0.045 | H17: 0.21 | I17: 0.04 | J17: 0.03
A18: Expense 3 | B18: 0.12
A19: Expense 4 | B19: 0.045
A20: Expense 5 | B20: 0.21
A21: Expense 6 | B21: 0.04
A22: Expense 7 | B22: 0.03

Sheet HW(4)
A1: Create the formulas to complete the Projected Net Income Statement.
B3: Jan | C3: Feb | D3: Mar | E3: Apr | F3: May | G3: Jun
A4: Sales | B4: 100 | C4: 200 | D4: 300 | E4: 400 | F4: 500 | G4: 600 | I4: Assumptions
A5: Ex1 | I5: Ex1 | J5: 0.03
A6: Ex2 | I6: Ex2 | J6: 0.04
A7: Ex3 | I7: Ex3 | J7: 0.05
A8: Ex4 | I8: Ex4 | J8: 0.06
A9: Ex5 | I9: Ex5 | J9: 0.07
A10: Ex6 | I10: Ex6 | J10: 0.08
A11: Ex7 | I11: Ex7 | J11: 0.09
A12: Ex8 | I12: Ex8 | J12: 0.1
A13: Ex9 | I13: Ex9 | J13: 0.11
A14: Ex10 | I14: Ex10 | J14: 0.12
A15: Ex11 | I15: Ex11 | J15: 0.13
A16: Total Ex
A17: Net Income

Sheet HW(4an)
A1: Create the formulas to complete the Projected Net Income Statement.
B3: Jan | C3: Feb | D3: Mar | E3: Apr | F3: May | G3: Jun
A4: Sales | B4: 100 | C4: 200 | D4: 300 | E4: 400 | F4: 500 | G4: 600 | I4: Assumptions
A5: Ex1 | B5: =ROUND(B$4*$J5,2) -> 3 | C5: 6 | D5: 9 | E5: 12 | F5: 15 | G5: 18 | I5: Ex1 | J5: 0.03
A6: Ex2 | B6: 4 | C6: 8 | D6: 12 | E6: 16 | F6: 20 | G6: 24 | I6: Ex2 | J6: 0.04
A7: Ex3 | B7: 5 | C7: 10 | D7: 15 | E7: 20 | F7: 25 | G7: 30 | I7: Ex3 | J7: 0.05
A8: Ex4 | B8: 6 | C8: 12 | D8: 18 | E8: 24 | F8: 30 | G8: 36 | I8: Ex4 | J8: 0.06
A9: Ex5 | B9: 7 | C9: 14 | D9: 21 | E9: 28 | F9: 35 | G9: 42 | I9: Ex5 | J9: 0.07
A10: Ex6 | B10: 8 | C10: 16 | D10: 24 | E10: 32 | F10: 40 | G10: 48 | I10: Ex6 | J10: 0.08
A11: Ex7 | B11: 9 | C11: 18 | D11: 27 | E11: 36 | F11: 45 | G11: 54 | I11: Ex7 | J11: 0.09
A12: Ex8 | B12: 10 | C12: 20 | D12: 30 | E12: 40 | F12: 50 | G12: 60 | I12: Ex8 | J12: 0.1
A13: Ex9 | B13: 11 | C13: 22 | D13: 33 | E13: 44 | F13: 55 | G13: 66 | I13: Ex9 | J13: 0.11
A14: Ex10 | B14: 12 | C14: 24 | D14: 36 | E14: 48 | F14: 60 | G14: 72 | I14: Ex10 | J14: 0.12
A15: Ex11 | B15: 13 | C15: 26 | D15: 39 | E15: 52 | F15: 65 | G15: 78 | I15: Ex11 | J15: 0.13
A16: Total Ex | B16: =SUM(B5:B15) -> 88 | C16: =SUM(C5:C15) -> 176 | D16: 264 | E16: 352 | F16: 440 | G16: 528 | J16: =SUM(J5:J15) -> 0.88
A17: Net Income | B17: =B4-B16 -> 12 | C17: 24 | D17: 36 | E17: 48 | F17: 60 | G17: 72
